fUST/lending_fUST_20240914
["ID","MTS","AMOUNT","RATE_DAILY","PERIOD"]
[338132896,1726288315317,-152.2,0.000258,31]
[338132897,1726288315328,-153.0,0.00025947,2]
[338132898,1726288315339,-306.0,0.00025947,2]
[338132899,1726288315350,-153.0,0.00025964,2]
[338132900,1726288315359,-524.3916759,0.00026,2]
[338132901,1726288315370,-509.93550887,0.00026027,2]
[338132902,1726288315380,-1400.0,0.00026135,2]
[338132903,1726288315391,-152.2,0.000262,31]
[338132904,1726288315403,-152.2,0.000262,31]
[338132905,1726288315414,-152.2,0.000262,31]
[338132906,1726288315427,-152.2,0.000262,31]
[338132907,1726288315438,-152.2,0.000262,31]
[338132908,1726288315447,-152.2,0.000262,31]
[338132909,1726288315457,-152.2,0.000262,31]
[338132910,1726288315466,-152.2,0.000262,31]
[338132911,1726288315475,-152.2,0.000262,31]
[338132912,1726288315485,-152.2,0.000262,31]
[338132913,1726288315494,-152.2,0.000262,31]
[338132914,1726288315504,-152.2,0.000262,31]
[338132915,1726288315513,-500.0,0.00026259,2]
[338132916,1726288315523,-660.0,0.00026301,2]
[338132917,1726288315532,-276.516495,0.00026388,2]
[338132918,1726288315541,-1400.0,0.00026466,2]
[338132919,1726288315552,-7458.94652043,0.0002649,2]
[338132920,1726288315564,-155.29195794,0.00026493,30]
[338132921,1726288315575,-500.0,0.00026537,2]
[338132922,1726288315587,-152.2,0.000266,31]
[338132923,1726288315598,-152.2,0.000266,31]
[338132924,1726288315611,-152.2,0.000266,31]
[338132925,1726288315623,-152.2,0.000266,31]
[338132926,1726288315633,-152.2,0.000266,31]
[338132927,1726288315643,-152.2,0.000266,31]
[338132928,1726288315652,-799.98714967,0.00026622,2]
[338132929,1726288315663,-524.0,0.00026667,2]
[338132930,1726288315674,-349.265991,0.00026676,2]
[338132931,1726288315686,-1400.0,0.00026815,2]
[338132932,1726288315697,-1400.0,0.00026905,2]
[338132933,1726288315710,-500.0,0.00027,2]
[338132934,1726288315722,-9354.473287,0.00027,3]
[338132935,1726288315732,-3722.53,0.00027,30]
[338132936,1726288315743,-1000.0,0.00027,27]
[338132937,1726288315753,-5000.0,0.00027,30]
[338132938,1726288315768,-2827.65,0.00027,30]
[338132939,1726288315778,-150.0,0.00027,2]
[338132940,1726288315790,-153.0,0.00027021,2]
[338132941,1726288315801,-337.0,0.00027064,2]
[338132942,1726288315814,-500.0,0.00027229,10]
[338132943,1726288315827,-500.0,0.00027229,10]
[338132944,1726288315837,-500.0,0.00027229,10]
[338132945,1726288315848,-500.0,0.00027229,10]
[338132946,1726288315859,-500.0,0.00027229,10]
[338132947,1726288315870,-500.0,0.00027229,10]
[338132948,1726288315882,-500.0,0.00027229,10]
[338132949,1726288315892,-900.0,0.00027229,10]
[338132950,1726288315904,-900.0,0.00027229,10]
[338132951,1726288315914,-900.0,0.00027229,10]
[338132952,1726288315924,-900.0,0.00027229,10]
[338132953,1726288315934,-900.0,0.00027229,10]
[338132954,1726288315944,-900.0,0.00027229,10]
[338132955,1726288315955,-900.0,0.00027229,10]
[338132956,1726288315965,-900.0,0.00027229,10]
[338132957,1726288315974,-900.0,0.00027229,10]
[338132958,1726288315984,-900.0,0.00027229,10]
[338132959,1726288315994,-900.0,0.00027229,10]
[338132960,1726288316004,-900.0,0.00027229,10]
[338132961,1726288316014,-1600.0,0.00027229,10]
[338132962,1726288316025,-500.0,0.00027229,10]
[338132963,1726288316035,-500.0,0.00027229,10]
[338132964,1726288316046,-500.0,0.00027229,10]
[338132965,1726288316056,-500.0,0.00027229,10]
[338132966,1726288316067,-500.0,0.00027229,10]
[338132967,1726288316078,-500.0,0.00027229,10]
[338132968,1726288316089,-500.0,0.00027229,10]
[338132969,1726288316100,-500.0,0.00027229,10]
[338132970,1726288316110,-500.0,0.00027229,10]
[338132971,1726288316120,-500.0,0.00027229,10]
[338132972,1726288316131,-601.23739672,0.00027229,10]
[338132973,1726288316140,-500.0,0.00027229,10]
[338132974,1726288316150,-712.2901985,0.00027229,10]
[338132975,1726288316161,-500.0,0.00027229,10]
[338132976,1726288316173,-500.0,0.00027229,10]
[338132977,1726288316184,-500.0,0.00027229,10]
[338132978,1726288316195,-500.0,0.00027229,10]
[338132979,1726288316211,-970.83629654,0.00027229,10]
[338132980,1726288316221,-500.0,0.00027229,10]
[338132981,1726288316232,-500.0,0.00027229,10]
[338132982,1726288316244,-500.0,0.00027229,10]
[338132983,1726288316257,-500.0,0.00027229,10]
[338132984,1726288316269,-500.0,0.00027229,10]
[338132985,1726288316279,-500.0,0.00027229,10]
[338132986,1726288316290,-500.0,0.00027229,10]
[338132987,1726288316301,-500.0,0.00027229,10]
[338132988,1726288316312,-500.0,0.00027229,10]
[338132989,1726288316323,-500.0,0.00027229,10]
[338132990,1726288316333,-707.57623769,0.00027229,10]
[338132991,1726288316343,-500.0,0.00027229,10]
[338132992,1726288316354,-500.000001,0.00027229,10]
[338132993,1726288316367,-903.27537912,0.00027229,10]
[338132994,1726288316378,-500.0,0.00027229,10]
[338132995,1726288316390,-500.0,0.00027229,10]
[338132996,1726288316401,-500.0,0.00027229,10]
[338132997,1726288316413,-500.0,0.00027397,2]
[338132998,1726288316422,-500.0,0.00027397,2]
[338132999,1726288316432,-500.0,0.00027397,2]
[338133000,1726288316443,-500.0,0.00027397,2]
[338133001,1726288316456,-500.0,0.00027397,2]
[338133002,1726288316467,-500.0,0.00027397,2]
[338133003,1726288316477,-500.0,0.00027397,2]
[338133004,1726288316486,-500.0,0.00027397,2]
[338133005,1726288316496,-500.0,0.00027397,2]
[338133006,1726288316507,-500.0,0.00027397,2]
[338133007,1726288316518,-500.0,0.00027397,2]
[338133008,1726288316527,-500.0,0.00027397,2]
[338133009,1726288316538,-500.0,0.00027397,2]
[338133010,1726288316549,-500.0,0.00027397,2]
[338133011,1726288316559,-500.0,0.00027397,2]
[338133012,1726288316571,-500.0,0.00027397,2]
[338133013,1726288316581,-500.0,0.00027397,2]
[338133014,1726288316592,-500.0,0.00027397,2]
[338133015,1726288316601,-500.0,0.00027397,2]
[338133016,1726288316612,-500.0,0.00027397,2]
[338133017,1726288316625,-500.0,0.00027397,2]
[338133018,1726288316635,-500.0,0.00027397,2]
[338133019,1726288316647,-500.0,0.00027397,2]
[338133020,1726288316668,-500.0,0.00027397,2]
[338133021,1726288316679,-500.0,0.00027397,2]
[338133022,1726288316690,-500.0,0.00027397,2]
[338133023,1726288316699,-500.0,0.00027397,2]
[338133024,1726288316710,-500.0,0.00027397,2]
[338133025,1726288316719,-500.0,0.00027397,2]
[338133026,1726288316729,-500.0,0.00027397,2]
[338133027,1726288316739,-500.0,0.00027397,2]
[338133028,1726288316749,-500.0,0.00027397,2]
[338133029,1726288316759,-294.68763641,0.00027397,2]
[338133030,1726288316768,-500.0,0.00027397,2]
[338133031,1726288316777,-500.0,0.00027397,2]
[338133032,1726288316787,-500.0,0.00027397,2]
[338133033,1726288316797,-500.0,0.00027397,2]
[338133034,1726288316807,-500.0,0.00027397,2]
[338133035,1726288316818,-500.0,0.00027397,2]
[338133036,1726288316828,-500.0,0.00027397,2]
[338133037,1726288316837,-500.0,0.00027397,2]
[338133038,1726288316849,-500.0,0.00027397,2]
[338133039,1726288316859,-500.0,0.00027397,2]
[338133040,1726288316869,-500.0,0.00027397,2]
[338133041,1726288316879,-500.0,0.00027397,2]
[338133042,1726288316889,-500.0,0.00027397,2]
[338133043,1726288316900,-500.0,0.00027397,2]
[338133044,1726288316910,-500.0,0.00027397,2]
[338133045,1726288316920,-500.0,0.00027397,2]
[338133046,1726288316932,-500.0,0.00027397,2]
[338133047,1726288316941,-500.0,0.00027397,2]
[338133048,1726288316952,-500.0,0.00027397,2]
[338133049,1726288317146,-500.0,0.00027397,2]
[338133050,1726288317157,-500.0,0.00027397,2]
[338133051,1726288317171,-500.0,0.00027397,2]
[338133052,1726288317182,-500.0,0.00027397,2]
[338133053,1726288317194,-500.0,0.00027397,2]
[338133054,1726288317206,-500.0,0.00027397,2]
[338133055,1726288317220,-500.0,0.00027397,2]
[338133056,1726288317231,-500.0,0.00027397,2]
[338133057,1726288317242,-500.0,0.00027397,2]
[338133058,1726288317253,-500.0,0.00027397,2]
[338133059,1726288317263,-500.0,0.00027397,2]
[338133060,1726288317272,-500.0,0.00027397,2]
[338133061,1726288317281,-500.0,0.00027397,2]
[338133062,1726288317292,-500.0,0.00027397,2]
[338133063,1726288317303,-500.0,0.00027397,2]
[338133064,1726288317314,-500.0,0.00027397,2]
[338133065,1726288317326,-500.0,0.00027397,2]
[338133066,1726288317337,-500.0,0.00027397,2]
[338133067,1726288317347,-500.0,0.00027397,2]
[338133068,1726288317358,-500.0,0.00027397,2]
[338133069,1726288317370,-200.0,0.00027397,2]
[338133070,1726288317379,-500.0,0.00027397,2]
[338133071,1726288317389,-500.0,0.00027397,2]
[338133072,1726288317398,-500.0,0.00027397,2]
[338133073,1726288317407,-500.0,0.00027397,2]
[338133074,1726288317417,-500.0,0.00027397,2]
[338133075,1726288317427,-500.0,0.00027397,2]
[338133076,1726288317436,-500.0,0.00027397,2]
[338133077,1726288317446,-500.0,0.00027397,2]
[338133078,1726288317456,-500.0,0.00027397,2]
[338133079,1726288317465,-500.0,0.00027397,2]
[338133080,1726288317474,-500.0,0.00027397,2]
[338133081,1726288317483,-500.0,0.00027397,2]
[338133082,1726288317493,-500.0,0.00027397,2]
[338133083,1726288317502,-500.0,0.00027397,2]
[338133084,1726288317511,-335.0,0.00027397,2]
[338133085,1726288317521,-500.0,0.00027397,2]
[338133086,1726288317531,-734.07,0.00027397,2]
[338133087,1726288317540,-734.07,0.00027397,2]
[338133088,1726288317550,-734.07,0.00027397,2]
[338133089,1726288317559,-734.07,0.00027397,2]
[338133090,1726288317569,-734.07,0.00027397,2]
[338133091,1726288317578,-734.07,0.00027397,2]
[338133092,1726288317588,-734.07,0.00027397,2]
[338133093,1726288317597,-734.07,0.00027397,2]
[338133094,1726288317606,-734.07,0.00027397,2]
[338133095,1726288317616,-734.07,0.00027397,2]
[338133096,1726288317628,-734.07,0.00027397,2]
[338133097,1726288317638,-734.07,0.00027397,2]
[338133098,1726288317647,-734.07,0.00027397,2]
[338133099,1726288317657,-734.07,0.00027397,2]
[338133100,1726288317666,-734.07,0.00027397,2]
[338133101,1726288317680,-734.07,0.00027397,2]
[338133102,1726288317690,-734.07,0.00027397,2]
[338133103,1726288317701,-734.07,0.00027397,2]
[338133104,1726288317711,-734.07,0.00027397,2]
[338133105,1726288317721,-734.07,0.00027397,2]
[338133106,1726288317731,-734.07,0.00027397,2]
[338133107,1726288317741,-734.07,0.00027397,2]
[338133108,1726288317751,-734.07,0.00027397,2]
[338133109,1726288317761,-734.2391914,0.00027397,2]
[338133110,1726288317771,-1000.0,0.00027397,2]
[338133111,1726288317781,-1000.0,0.00027397,2]
[338133112,1726288317791,-1000.0,0.00027397,2]
[338133113,1726288317801,-1000.0,0.00027397,2]
[338133114,1726288317811,-1000.0,0.00027397,2]
[338133115,1726288317821,-874.04979903,0.00027397,2]
[338133116,1726288317831,-1000.0,0.00027397,14]
[338133117,1726288317842,-1000.0,0.00027397,14]
[338133118,1726288317852,-1000.0,0.00027397,14]
[338133119,1726288317863,-1000.0,0.00027397,14]
[338133120,1726288317873,-1000.0,0.00027397,14]
[338133121,1726288317883,-1000.0,0.00027397,14]
[338133122,1726288317893,-1000.0,0.00027397,14]
[338133123,1726288317903,-1000.0,0.00027397,14]
[338133124,1726288317912,-1000.0,0.00027397,14]
[338133125,1726288317922,-1000.0,0.00027397,14]
[338133126,1726288317932,-250.92357174,0.00027397,14]
[338133127,1726288317943,-278.167072,0.00027397,7]
[338133128,1726288317954,-171.5221807,0.00027397,30]
[338133129,1726288317966,-24836.86,0.000274,14]
[338133130,1726288317977,-155.29195794,0.00027425,30]
[338133131,1726288317989,-500.0,0.00027427,2]
[338133132,1726288317998,-43967.81476847,0.000275,2]
[338133133,1726288318009,-513.94175839,0.00027671,2]
[338133134,1726288318019,-1400.0,0.00027708,2]
[338133135,1726288318029,-500.0,0.00027945,2]
[338133136,1726288318039,-500.0,0.00027945,2]
[338133137,1726288318049,-500.0,0.00027945,2]
[338133138,1726288318062,-500.0,0.00027945,2]
[338133139,1726288318073,-500.0,0.00027945,2]
[338133140,1726288318084,-500.0,0.00027945,2]
[338133141,1726288318094,-500.0,0.00027945,2]
[338133142,1726288318105,-500.0,0.00027945,2]
[338133143,1726288318116,-500.0,0.00027945,2]
[338133144,1726288318127,-500.0,0.00027945,2]
[338133145,1726288318138,-570.49983528,0.00027945,2]
[338133146,1726288318148,-31713.43113411,0.0002799,2]
[338133147,1726288318159,-2500.0,0.00028,7]
[338133148,1726288318170,-627.0,0.00028,10]
[338133149,1726288318180,-200.0,0.00028,2]
[338133150,1726288318191,-14063.52001464,0.00028,10]
[338133151,1726288318201,-1902.72350976,0.00028,60]
[338133152,1726288318211,-500.0,0.00028,30]
[338133153,1726288318222,-500.0,0.00028,30]
[338133154,1726288318233,-500.0,0.00028,30]
[338133155,1726288318244,-500.0,0.00028,30]
[338133156,1726288318254,-500.0,0.00028,30]
[338133157,1726288318264,-500.0,0.00028,30]
[338133158,1726288318273,-500.0,0.00028,30]
[338133159,1726288318283,-500.0,0.00028,30]
[338133160,1726288318293,-500.0,0.00028,30]
[338133161,1726288318302,-500.0,0.00028,30]
[338133162,1726288318311,-500.0,0.00028,30]
[338133163,1726288318321,-500.0,0.00028,30]
[338133164,1726288318332,-500.0,0.00028,30]
[338133165,1726288318343,-500.0,0.00028,30]
[338133166,1726288318355,-500.0,0.00028,30]
[338133167,1726288318365,-500.0,0.00028,30]
[338133168,1726288318376,-500.0,0.00028,30]
[338133169,1726288318386,-500.0,0.00028,30]
[338133170,1726288318396,-500.0,0.00028,30]
[338133171,1726288318408,-4407.30088997,0.00028,2]
[338133172,1726288318419,-10000.0,0.00028,2]
[338133173,1726288318430,-10000.0,0.00028,2]
[338133174,1726288318440,-10000.0,0.00028,2]
[338133175,1726288318450,-12845.07674483,0.00028,2]
[338133176,1726288318459,-1357.64404569,0.00028,2]
[338133177,1726288318471,-300.454,0.00028,2]
[338133178,1726288318483,-150.0,0.00028,2]
[338133179,1726288318493,-150.0,0.00028,20]
[338133180,1726288318506,-24836.86,0.000283,14]
[338133181,1726288318517,-155.29195794,0.00028329,30]
[338133182,1726288318529,-153.0,0.00028391,2]
[338133183,1726288318541,-4000.0,0.00028464,5]
[338133184,1726288318551,-4000.0,0.00028464,5]
[338133185,1726288318562,-174.021274,0.00028493,2]
[338133186,1726288318574,-174.021274,0.00028493,120]
[338133187,1726288318584,-723.02,0.000285,7]
[338133188,1726288318594,-500.96,0.000285,14]
[338133189,1726288318603,-154.16165288,0.00028653,2]
[338133190,1726288318613,-337.0,0.00028756,2]
[338133191,1726288318624,-1400.0,0.0002891,2]
[338133192,1726288318634,-337.0,0.00028997,2]
[338133193,1726288318644,-250.0,0.00029,10]
[338133194,1726288318655,-854.4820438,0.00029,2]
[338133195,1726288318665,-23514.36518524,0.00029,30]
[338133196,1726288318676,-4406.0,0.00029,2]
[338133197,1726288318687,-10000.0,0.00029,2]
[338133198,1726288318698,-10000.0,0.00029,2]
[338133199,1726288318710,-10000.0,0.00029,2]
[338133200,1726288318722,-12844.0,0.00029,2]
[338133201,1726288318731,-1356.0,0.00029,2]
[338133202,1726288318741,-150.0,0.00029,2]
[338133203,1726288318753,-500.0,0.00029158,2]
[338133204,1726288318762,-24836.86,0.000292,14]
[338133205,1726288318773,-500.0,0.00029235,2]
[338133206,1726288318784,-155.29195794,0.0002926,30]
[338133207,1726288318795,-1400.0,0.00029269,2]
[338133208,1726288318805,-1400.0,0.00029274,2]
[338133209,1726288318815,-1400.0,0.00029276,2]
[338133210,1726288318826,-500.0,0.0002936,2]
[338133211,1726288318836,-1000.0,0.000295,2]
[338133212,1726288318846,-1400.0,0.00029537,2]
[338133213,1726288318856,-500.0,0.0002964,2]
[338133214,1726288318866,-524.0,0.00029667,2]
[338133215,1726288318877,-500.0,0.00029678,2]
[338133216,1726288318887,-723.02,0.000299,7]
[338133217,1726288318897,-500.96,0.000299,14]
[338133218,1726288318906,-2000.0,0.000299,7]
[338133219,1726288318916,-500.0,0.00029957,2]
[338133220,1726288318928,-1400.0,0.0002998,2]
[338133221,1726288318937,-250.0,0.0003,10]
[338133222,1726288318947,-388.54232952,0.0003,10]
[338133223,1726288318958,-7866.32299377,0.0003,10]
[338133224,1726288318967,-1500.0,0.0003,2]
[338133225,1726288318977,-1011.50850229,0.0003,7]
[338133226,1726288318986,-190.0,0.0003,2]
[338133227,1726288318995,-155.0,0.0003,2]
[338133228,1726288319005,-50000.0,0.0003,7]
[338133229,1726288319014,-151.0,0.0003,120]
[338133230,1726288319024,-360.0,0.0003,60]
[338133231,1726288319034,-360.0,0.0003,60]
[338133232,1726288319043,-206.0,0.0003,120]
[338133233,1726288319053,-150.0,0.0003,120]
[338133234,1726288319063,-151.0,0.0003,120]
[338133235,1726288319073,-874.37350631,0.0003,2]
[338133236,1726288319082,-150.0,0.0003,2]
[338133237,1726288319091,-63000.0,0.0003,15]
[338133238,1726288319101,-771.0,0.0003,2]
[338133239,1726288319111,-262.0,0.0003,2]
[338133240,1726288319120,-150.06758689,0.0003,7]
[338133241,1726288319129,-150.0,0.0003,2]
[338133242,1726288319139,-272.23029196,0.0003,2]
[338133243,1726288319148,-510.36372214,0.00030136,4]
[338133244,1726288319157,-155.29195794,0.00030164,30]
[338133245,1726288319166,-24836.86,0.000302,14]
[338133246,1726288319176,-500.0,0.00030238,7]
[338133247,1726288319185,-500.0,0.00030276,7]
[338133248,1726288319194,-500.0,0.00030298,7]
[338133249,1726288319204,-1058.70039989,0.00030342,12]
[338133250,1726288319214,-1058.80609025,0.0003038,12]
[338133251,1726288319225,-337.0,0.00030447,2]
[338133252,1726288319234,-153.0,0.00030548,2]
[338133253,1726288319245,-153.0,0.00030548,2]
[338133254,1726288319256,-153.0,0.00030548,2]
[338133255,1726288319266,-1058.70039989,0.00030645,12]
[338133256,1726288319276,-1400.0,0.00030672,7]
[338133257,1726288319285,-642.8761566,0.00030684,12]
[338133258,1726288319295,-1400.0,0.00030712,7]
[338133259,1726288319306,-771.0,0.00030721,2]
[338133260,1726288319315,-1000.0,0.00030744,7]
[338133261,1726288319326,-1500.0,0.00030832,7]
[338133262,1726288319336,-397.8656344,0.00030874,2]
[338133263,1726288319347,-153.0,0.00030874,2]
[338133264,1726288319358,-1500.0,0.00030901,7]
[338133265,1726288319368,-1058.70039989,0.00030949,12]
[338133266,1726288319380,-771.0,0.00030995,2]
[338133267,1726288319391,-723.02,0.00031,7]
[338133268,1726288319403,-500.96,0.00031,14]
[338133269,1726288319414,-250.0,0.00031,10]
[338133270,1726288319424,-1000.0,0.00031054,7]
[338133271,1726288319435,-155.29195794,0.00031096,30]
[338133272,1726288319445,-153.0,0.00031096,2]
[338133273,1726288319458,-24836.86,0.000311,14]
[338133274,1726288319469,-604.59426715,0.00031252,14]
[338133275,1726288319479,-771.0,0.00031269,2]
[338133276,1726288319489,-1000.0,0.00031484,7]
[338133277,1726288319500,-771.0,0.00031543,2]
[338133278,1726288319511,-1000.0,0.0003163,7]
[338133279,1726288319521,-500.0,0.0003166,7]
[338133280,1726288319532,-2240.71374955,0.00031723,5]
[338133281,1726288319541,-4500.0,0.00031723,5]
[338133282,1726288319553,-771.0,0.00031817,2]
[338133283,1726288319563,-799.98714967,0.00031871,2]
[338133284,1726288319574,-1500.0,0.00031939,7]
[338133285,1726288319586,-771.0,0.00031969,2]
[338133286,1726288319596,-1500.0,0.00031973,7]
[338133287,1726288319607,-250.0,0.00032,10]
[338133288,1726288319617,-24836.86,0.00032,14]
[338133289,1726288319628,-226.38,0.00032,30]
[338133290,1726288319639,-155.29195794,0.00032027,30]
[338133291,1726288319650,-723.02,0.000321,7]
[338133292,1726288319660,-500.96,0.000321,14]
[338133293,1726288319670,-1400.0,0.00032103,7]
[338133294,1726288319679,-280.78691209,0.0003212,10]
[338133295,1726288319688,-1500.0,0.00032147,7]
[338133296,1726288319698,-153.0,0.00032201,2]
[338133297,1726288319715,-1400.0,0.00032202,7]
[338133298,1726288319724,-1400.0,0.00032372,7]
[338133299,1726288319734,-213.8974583,0.00032399,2]
[338133300,1726288319744,-1400.0,0.00032483,7]
[338133301,1726288319753,-1000.0,0.000325,2]
[338133302,1726288319763,-320.0,0.000325,2]
[338133303,1726288319773,-23661.199,0.000325,120]
[338133304,1726288319783,-23661.2,0.000325,120]
[338133305,1726288319793,-23661.2,0.000325,120]
[338133306,1726288319806,-23661.199,0.000325,120]
[338133307,1726288319817,-23661.2,0.000325,120]
[338133308,1726288319827,-524.0,0.00032667,2]
[338133309,1726288319836,-500.0,0.00032769,7]
[338133310,1726288319847,-160.0,0.00032875,10]
[338133311,1726288319857,-160.0,0.00032875,10]
[338133312,1726288319866,-600.0,0.00032876,2]
[338133313,1726288319877,-600.0,0.00032876,2]
[338133314,1726288319887,-600.0,0.00032876,2]
[338133315,1726288319896,-600.0,0.00032876,2]
[338133316,1726288319907,-605.26115753,0.00032876,2]
[338133317,1726288319917,-210.67396239,0.00032876,2]
[338133318,1726288319927,-500.0,0.00032876,2]
[338133319,1726288319937,-417.96135595,0.00032876,2]
[338133320,1726288319946,-500.0,0.00032876,2]
[338133321,1726288319957,-500.0,0.00032876,2]
[338133322,1726288319967,-500.0,0.00032876,2]
[338133323,1726288319976,-500.0,0.00032876,2]
[338133324,1726288319986,-230.61432185,0.00032876,2]
[338133325,1726288319997,-500.0,0.00032876,2]
[338133326,1726288320006,-500.0,0.00032876,2]
[338133327,1726288320016,-500.0,0.00032876,2]
[338133328,1726288320028,-500.0,0.00032876,2]
[338133329,1726288320038,-500.0,0.00032876,2]
[338133330,1726288320047,-500.0,0.00032876,2]
[338133331,1726288320059,-586.54496828,0.00032876,2]
[338133332,1726288320070,-500.0,0.00032876,2]
[338133333,1726288320080,-545.47869197,0.00032876,2]
[338133334,1726288320090,-468.75012068,0.00032876,2]
[338133335,1726288320099,-500.0,0.00032876,2]
[338133336,1726288320108,-573.00896435,0.00032876,2]
[338133337,1726288320117,-500.0,0.00032876,2]
[338133338,1726288320128,-191.43338027,0.00032876,2]
[338133339,1726288320137,-269.90122806,0.00032876,2]
[338133340,1726288320147,-451.40792678,0.00032876,2]
[338133341,1726288320157,-421.6319596,0.00032876,2]
[338133342,1726288320166,-500.0,0.00032876,2]
[338133343,1726288320176,-500.0,0.00032876,2]
[338133344,1726288320186,-500.0,0.00032876,2]
[338133345,1726288320195,-500.0,0.00032876,2]
[338133346,1726288320206,-500.0,0.00032876,2]
[338133347,1726288320215,-500.0,0.00032876,2]
[338133348,1726288320224,-575.0,0.00032876,2]
[338133349,1726288320233,-575.0,0.00032876,2]
[338133350,1726288320243,-815.0,0.00032876,2]
[338133351,1726288320252,-500.0,0.00032876,2]
[338133352,1726288320262,-500.0,0.00032876,2]
[338133353,1726288320272,-500.0,0.00032876,2]
[338133354,1726288320281,-500.0,0.00032876,2]
[338133355,1726288320292,-500.0,0.00032876,2]
[338133356,1726288320303,-500.0,0.00032876,2]
[338133357,1726288320313,-500.0,0.00032876,2]
[338133358,1726288320326,-500.0,0.00032876,2]
[338133359,1726288320337,-500.0,0.00032876,2]
[338133360,1726288320347,-500.0,0.00032876,2]
[338133361,1726288320359,-500.0,0.00032876,2]
[338133362,1726288320370,-500.0,0.00032876,2]
[338133363,1726288320379,-500.0,0.00032876,2]
[338133364,1726288320388,-500.0,0.00032876,2]
[338133365,1726288320398,-500.0,0.00032876,2]
[338133366,1726288320407,-500.0,0.00032876,2]
[338133367,1726288320417,-500.0,0.00032876,2]
[338133368,1726288320426,-500.0,0.00032876,2]
[338133369,1726288320435,-500.0,0.00032876,2]
[338133370,1726288320444,-500.0,0.00032876,2]
[338133371,1726288320454,-500.0,0.00032876,2]
[338133372,1726288320463,-500.0,0.00032876,2]
[338133373,1726288320472,-500.0,0.00032876,2]
[338133374,1726288320482,-500.0,0.00032876,2]
[338133375,1726288320625,-500.0,0.00032876,2]
[338133376,1726288320635,-500.0,0.00032876,2]
[338133377,1726288320644,-500.0,0.00032876,2]
[338133378,1726288320654,-500.0,0.00032876,2]
[338133379,1726288320663,-500.0,0.00032876,2]
[338133380,1726288320673,-500.0,0.00032876,2]
[338133381,1726288320683,-500.0,0.00032876,2]
[338133382,1726288320693,-500.0,0.00032876,2]
[338133383,1726288320702,-500.0,0.00032876,2]
[338133384,1726288320711,-500.0,0.00032876,2]
[338133385,1726288320721,-500.0,0.00032876,2]
[338133386,1726288320730,-500.0,0.00032876,2]
[338133387,1726288320741,-500.0,0.00032876,2]
[338133388,1726288320751,-500.0,0.00032876,2]
[338133389,1726288320760,-500.0,0.00032876,2]
[338133390,1726288320770,-500.0,0.00032876,2]
[338133391,1726288320779,-500.0,0.00032876,2]
[338133392,1726288320788,-500.0,0.00032876,2]
[338133393,1726288320798,-500.0,0.00032876,2]
[338133394,1726288320807,-500.0,0.00032876,2]
[338133395,1726288320817,-500.0,0.00032876,2]